fUSD/lending_fUSD_20240301
["ID","MTS","AMOUNT","RATE_DAILY","PERIOD"]
[315971353,1709308243835,-500.0,0.00021917,2]
[315971355,1709308243845,-500.0,0.00021917,2]
[315971357,1709308243854,-500.0,0.00021917,2]
[315971359,1709308243863,-500.0,0.00021917,2]
[315971361,1709308243873,-500.0,0.00021917,2]
[315971363,1709308243882,-500.0,0.00021917,2]
[315971365,1709308243892,-351.02943493,0.00021917,2]
[315971367,1709308243901,-500.0,0.00021917,2]
[315971369,1709308243911,-500.0,0.00021917,2]
[315971371,1709308243921,-500.0,0.00021917,2]
[315971373,1709308243930,-500.0,0.00021917,2]
[315971375,1709308243939,-150.0,0.00021917,2]
[315971377,1709308243948,-500.0,0.00021917,2]
[315971379,1709308243957,-500.0,0.00021917,2]
[315971381,1709308243966,-500.0,0.00021917,2]
[315971383,1709308243975,-500.0,0.00021917,2]
[315971385,1709308243987,-419.61,0.00021917,2]
[315971387,1709308243996,-500.0,0.00021917,2]
[315971389,1709308244005,-500.0,0.00021917,2]
[315971391,1709308244015,-500.0,0.00021917,2]
[315971393,1709308244026,-500.0,0.00021917,2]
[315971395,1709308244037,-534.56,0.00021917,2]
[315971397,1709308244046,-500.0,0.00021917,2]
[315971399,1709308244055,-500.0,0.00021917,2]
[315971401,1709308244064,-500.0,0.00021917,2]
[315971403,1709308244074,-500.0,0.00021917,2]
[315971405,1709308244083,-673.98,0.00021917,2]
[315971407,1709308244093,-500.0,0.00021917,2]
[315971409,1709308244102,-500.0,0.00021917,2]
[315971411,1709308244112,-500.0,0.00021917,2]
[315971413,1709308244122,-500.0,0.00021917,2]
[315971415,1709308244131,-617.96,0.00021917,2]
[315971417,1709308244140,-500.0,0.00021917,2]
[315971419,1709308244149,-651.06,0.00021917,2]
[315971421,1709308244158,-500.0,0.00021917,2]
[315971423,1709308244168,-500.0,0.00021917,2]
[315971425,1709308244177,-500.0,0.00021917,2]
[315971427,1709308244187,-500.0,0.00021917,2]
[315971429,1709308244197,-500.0,0.00021917,2]
[315971431,1709308244207,-439.85218147,0.00021917,2]
[315971433,1709308244216,-500.0,0.00021917,2]
[315971435,1709308244226,-500.0,0.00021917,2]
[315971437,1709308244239,-500.0,0.00021917,2]
[315971439,1709308244249,-500.0,0.00021917,2]
[315971441,1709308244258,-500.0,0.00021917,2]
[315971443,1709308244267,-500.0,0.00021917,2]
[315971445,1709308244277,-500.0,0.00021917,2]
[315971447,1709308244286,-552.81,0.00021917,2]
[315971449,1709308244295,-500.0,0.00021917,2]
[315971451,1709308244304,-544.31,0.00021917,2]
[315971453,1709308244313,-500.0,0.00021917,2]
[315971455,1709308244323,-650.72,0.00021917,2]
[315971457,1709308244332,-500.0,0.00021917,2]
[315971459,1709308244341,-500.0,0.00021917,2]
[315971461,1709308244350,-500.0,0.00021917,2]
[315971463,1709308244359,-500.0,0.00021917,2]
[315971465,1709308244368,-590.01,0.00021917,2]
[315971466,1709308244377,-500.0,0.00021917,2]
[315971468,1709308244386,-500.0,0.00021917,2]
[315971471,1709308244395,-500.0,0.00021917,2]
[315971473,1709308244405,-500.0,0.00021917,2]
[315971474,1709308244415,-500.0,0.00021917,2]
[315971475,1709308244424,-500.0,0.00021917,2]
[315971476,1709308244433,-292.13664291,0.00021917,2]
[315971477,1709308244442,-500.0,0.00021917,2]
[315971478,1709308244452,-518.79124008,0.00021917,2]
[315971479,1709308244461,-500.0,0.00021917,2]
[315971480,1709308244470,-500.0,0.00021917,2]
[315971481,1709308244479,-745.08,0.00021917,2]
[315971482,1709308244489,-834.57,0.00021917,2]
[315971484,1709308244498,-500.0,0.00021917,2]
[315971486,1709308244507,-500.0,0.00021917,2]
[315971488,1709308244517,-500.0,0.00021917,2]
[315971490,1709308244526,-500.0,0.00021917,2]
[315971492,1709308244535,-500.0,0.00021917,2]
[315971495,1709308244546,-500.0,0.00021917,2]
[315971497,1709308244554,-649.73,0.00021917,2]
[315971499,1709308244564,-500.0,0.00021917,2]
[315971501,1709308244574,-500.0,0.00021917,2]
[315971503,1709308244583,-522.21,0.00021917,2]
[315971505,1709308244595,-500.0,0.00021917,2]
[315971507,1709308244604,-500.0,0.00021917,2]
[315971509,1709308244613,-500.0,0.00021917,2]
[315971511,1709308244622,-500.0,0.00021917,2]
[315971513,1709308244631,-524.3,0.00021917,2]
[315971515,1709308244640,-500.0,0.00021917,2]
[315971517,1709308244649,-500.0,0.00021917,2]
[315971519,1709308244658,-393.60458618,0.00021917,2]
[315971521,1709308244667,-500.0,0.00021917,2]
[315971523,1709308244676,-500.0,0.00021917,2]
[315971525,1709308244685,-500.0,0.00021917,2]
[315971527,1709308244694,-500.0,0.00021917,2]
[315971529,1709308244703,-500.0,0.00021917,2]
[315971531,1709308244713,-500.0,0.00021917,2]
[315971533,1709308244722,-500.0,0.00021917,2]
[315971535,1709308244732,-500.0,0.00021917,2]
[315971537,1709308244741,-703.46,0.00021917,2]
[315971539,1709308244750,-500.0,0.00021917,2]
[315971541,1709308244759,-500.0,0.00021917,2]
[315971543,1709308244768,-500.0,0.00021917,2]
[315971545,1709308244777,-500.0,0.00021917,2]
[315971547,1709308244786,-500.0,0.00021917,2]
[315971549,1709308244795,-2247.37,0.00021917,2]
[315971551,1709308244803,-500.0,0.00021917,2]
[315971553,1709308244812,-500.0,0.00021917,2]
[315971555,1709308244821,-2769.6,0.00021917,2]
[315971557,1709308244830,-500.0,0.00021917,2]
[315971559,1709308244838,-599.08,0.00021917,2]
[315971561,1709308244847,-500.0,0.00021917,2]
[315971562,1709308244856,-500.0,0.00021917,2]
[315971564,1709308244865,-500.0,0.00021917,2]
[315971567,1709308244874,-500.0,0.00021917,2]
[315971569,1709308244883,-500.0,0.00021917,2]
[315971571,1709308244893,-500.0,0.00021917,2]
[315971573,1709308244903,-500.0,0.00021917,2]
[315971575,1709308244912,-2898.64,0.00021917,2]
[315971577,1709308244921,-500.0,0.00021917,2]
[315971578,1709308244929,-713.41,0.00021917,2]
[315971580,1709308244938,-500.0,0.00021917,2]
[315971582,1709308244947,-1341.0,0.00021917,2]
[315971584,1709308244957,-500.0,0.00021917,2]
[315971586,1709308244965,-500.0,0.00021917,2]
[315971589,1709308244975,-500.0,0.00021917,2]
[315971591,1709308244986,-500.0,0.00021917,2]
[315971592,1709308244995,-500.0,0.00021917,2]
[315971595,1709308245004,-656.16,0.00021917,2]
[315971597,1709308245013,-545.26,0.00021917,2]
[315971599,1709308245026,-500.0,0.00021917,2]
[315971601,1709308245035,-500.0,0.00021917,2]
[315971603,1709308245048,-3101.35,0.00021917,2]
[315971605,1709308245058,-1559.45,0.00021917,2]
[315971607,1709308245068,-2785.8,0.00021917,2]
[315971609,1709308245077,-500.0,0.00021917,2]
[315971611,1709308245086,-500.0,0.00021917,2]
[315971613,1709308245096,-500.0,0.00021917,2]
[315971615,1709308245106,-3780.98,0.00021917,2]
[315971617,1709308245115,-2793.4,0.00021917,2]
[315971619,1709308245124,-500.0,0.00021917,2]
[315971621,1709308245133,-2121.53,0.00021917,2]
[315971623,1709308245142,-500.0,0.00021917,2]
[315971625,1709308245151,-1086.17,0.00021917,2]
[315971627,1709308245160,-804.74,0.00021917,2]
[315971629,1709308245169,-500.0,0.00021917,2]
[315971630,1709308245179,-500.0,0.00021917,2]
[315971632,1709308245189,-526.95059491,0.00021917,2]
[315971634,1709308245198,-11495.74,0.00021917,2]
[315971637,1709308245207,-500.0,0.00021917,2]
[315971639,1709308245217,-879.34,0.00021917,2]
[315971641,1709308245226,-1331.95,0.00021917,2]
[315971643,1709308245238,-1388.89,0.00021917,2]
[315971645,1709308245247,-500.0,0.00021917,2]
[315971647,1709308245256,-500.0,0.00021917,2]
[315971649,1709308245265,-500.0,0.00021917,2]
[315971651,1709308245274,-500.0,0.00021917,2]
[315971652,1709308245283,-500.0,0.00021917,2]
[315971654,1709308245293,-253.23383816,0.00021917,2]
[315971656,1709308245302,-500.0,0.00021917,2]
[315971658,1709308245313,-500.0,0.00021917,2]
[315971661,1709308245323,-500.0,0.00021917,2]
[315971663,1709308245332,-500.0,0.00021917,2]
[315971664,1709308245341,-586.64,0.00021917,2]
[315971667,1709308245351,-500.0,0.00021917,2]
[315971669,1709308245360,-500.0,0.00021917,2]
[315971671,1709308245369,-500.0,0.00021917,2]
[315971673,1709308245378,-500.0,0.00021917,2]
[315971675,1709308245387,-734.4,0.00021917,2]
[315971676,1709308245397,-500.0,0.00021917,2]
[315971678,1709308245406,-1213.25,0.00021917,2]
[315971681,1709308245415,-616.54,0.00021917,2]
[315971682,1709308245426,-500.0,0.00021917,2]
[315971685,1709308245435,-500.0,0.00021917,2]
[315971687,1709308245446,-736.95,0.00021917,2]
[315971689,1709308245455,-839.24,0.00021917,2]
[315971690,1709308245464,-500.0,0.00021917,2]
[315971692,1709308245473,-1052.58,0.00021917,2]
[315971694,1709308245485,-500.0,0.00021917,2]
[315971696,1709308245495,-572.97,0.00021917,2]
[315971698,1709308245504,-500.0,0.00021917,2]
[315971700,1709308245513,-500.0,0.00021917,2]
[315971702,1709308245522,-209.44578281,0.00021917,2]
[315971704,1709308245531,-500.0,0.00021917,2]
[315971707,1709308245540,-500.0,0.00021917,2]
[315971709,1709308245549,-500.0,0.00021917,2]
[315971711,1709308245558,-500.0,0.00021917,2]
[315971713,1709308245567,-647.01,0.00021917,2]
[315971715,1709308245576,-714.3,0.00021917,2]
[315971717,1709308245585,-500.0,0.00021917,2]
[315971719,1709308245594,-3098.96,0.00021917,2]
[315971721,1709308245604,-500.0,0.00021917,2]
[315971723,1709308245613,-500.0,0.00021917,2]
[315971726,1709308245622,-670.07,0.00021917,2]
[315971728,1709308245631,-500.0,0.00021917,2]
[315971731,1709308245641,-500.0,0.00021917,2]
[315971733,1709308245650,-654.78,0.00021917,2]
[315971735,1709308245659,-500.0,0.00021917,2]
[315971737,1709308245668,-500.0,0.00021917,2]
[315971739,1709308245678,-500.0,0.00021917,2]
[315971741,1709308245687,-500.0,0.00021917,2]
[315971743,1709308245696,-639.57,0.00021917,2]
[315971745,1709308245704,-500.0,0.00021917,2]
[315971747,1709308245713,-500.0,0.00021917,2]
[315971749,1709308245722,-513.03,0.00021917,2]
[315971751,1709308245735,-500.0,0.00021917,2]
[315971753,1709308245745,-500.0,0.00021917,2]
[315971755,1709308245754,-500.0,0.00021917,2]
[315971757,1709308245763,-500.0,0.00021917,2]
[315971759,1709308245771,-589.38,0.00021917,2]
[315971761,1709308245780,-500.0,0.00021917,2]
[315971763,1709308245789,-600.99,0.00021917,2]
[315971765,1709308245797,-500.0,0.00021917,2]
[315971767,1709308245806,-1183.81,0.00021917,2]
[315971769,1709308245815,-500.0,0.00021917,2]
[315971771,1709308245824,-824.34,0.00021917,2]
[315971773,1709308245833,-500.0,0.00021917,2]
[315971775,1709308245841,-500.0,0.00021917,2]
[315971777,1709308245850,-500.0,0.00021917,2]
[315971779,1709308245859,-878.22,0.00021917,2]
[315971781,1709308245868,-500.0,0.00021917,2]
[315971783,1709308245877,-1789.84,0.00021917,2]
[315971785,1709308245887,-500.0,0.00021917,2]
[315971787,1709308245895,-500.0,0.00021917,2]
[315971788,1709308245904,-749.44,0.00021917,2]
[315971790,1709308245914,-500.0,0.00021917,2]
[315971793,1709308245924,-596.75,0.00021917,2]
[315971795,1709308245934,-500.0,0.00021917,2]
[315971797,1709308245943,-500.0,0.00021917,2]
[315971799,1709308245952,-500.0,0.00021917,2]
[315971800,1709308245961,-500.0,0.00021917,2]
[315971803,1709308245971,-706.4,0.00021917,2]
[315971804,1709308245980,-577.18,0.00021917,2]
[315971807,1709308245992,-500.0,0.00021917,2]
[315971809,1709308246000,-617.2,0.00021917,2]
[315971810,1709308246009,-500.0,0.00021917,2]
[315971812,1709308246020,-500.0,0.00021917,2]
[315971815,1709308246034,-500.0,0.00021917,2]
[315971817,1709308246043,-539.9,0.00021917,2]
[315971819,1709308246052,-500.0,0.00021917,2]
[315971821,1709308246061,-500.0,0.00021917,2]
[315971823,1709308246074,-500.0,0.00021917,2]
[315971825,1709308246083,-500.0,0.00021917,2]
[315971827,1709308246092,-500.0,0.00021917,2]
[315971829,1709308246103,-878.13,0.00021917,2]
[315971831,1709308246113,-661.63,0.00021917,2]
[315971833,1709308246123,-500.0,0.00021917,2]
[315971835,1709308246132,-500.0,0.00021917,2]
[315971837,1709308246141,-500.0,0.00021917,2]
[315971839,1709308246150,-642.25,0.00021917,2]
[315971840,1709308246160,-500.0,0.00021917,2]
[315971842,1709308246169,-500.0,0.00021917,2]
[315971845,1709308246179,-500.0,0.00021917,2]
[315971847,1709308246188,-500.0,0.00021917,2]
[315971848,1709308246197,-2726.76,0.00021917,2]
[315971851,1709308246207,-500.0,0.00021917,2]
[315971852,1709308246216,-500.0,0.00021917,2]
[315971855,1709308246226,-500.0,0.00021917,2]
[315971856,1709308246237,-500.0,0.00021917,2]
[315971858,1709308246246,-500.0,0.00021917,2]
[315971860,1709308246255,-500.0,0.00021917,2]
[315971874,1709308246264,-500.0,0.00021917,2]
[315971878,1709308246403,-500.0,0.00021917,2]
[315971880,1709308246413,-500.0,0.00021917,2]
[315971882,1709308246423,-986.55,0.00021917,2]
[315971884,1709308246433,-500.0,0.00021917,2]
[315971886,1709308246443,-500.0,0.00021917,2]
[315971888,1709308246452,-500.0,0.00021917,2]
[315971891,1709308246462,-500.0,0.00021917,2]
[315971893,1709308246471,-500.0,0.00021917,2]
[315971895,1709308246483,-3333.65,0.00021917,2]
[315971897,1709308246493,-500.0,0.00021917,2]
[315971899,1709308246502,-615.82,0.00021917,2]
[315971901,1709308246511,-500.0,0.00021917,2]
[315971903,1709308246520,-869.58,0.00021917,2]
[315971905,1709308246530,-301.53,0.00021917,2]
[315971907,1709308246539,-500.0,0.00021917,2]
[315971909,1709308246549,-500.0,0.00021917,2]
[315971911,1709308246558,-3857.42,0.00021917,2]
[315971913,1709308246568,-500.0,0.00021917,2]
[315971915,1709308246577,-877.2,0.00021917,2]
[315971917,1709308246587,-500.0,0.00021917,2]
[315971919,1709308246596,-500.0,0.00021917,2]
[315971920,1709308246605,-500.0,0.00021917,2]
[315971921,1709308246614,-500.0,0.00021917,2]
[315971922,1709308246624,-749.53,0.00021917,2]
[315971923,1709308246633,-500.0,0.00021917,2]
[315971924,1709308246643,-795.28,0.00021917,2]
[315971925,1709308246652,-530.35,0.00021917,2]
[315971926,1709308246665,-500.0,0.00021917,2]
[315971928,1709308246674,-500.0,0.00021917,2]
[315971929,1709308246684,-944.39,0.00021917,2]
[315971931,1709308246693,-500.0,0.00021917,2]
[315971934,1709308246703,-500.0,0.00021917,2]
[315971936,1709308246712,-500.0,0.00021917,2]
[315971938,1709308246722,-500.0,0.00021917,2]
[315971940,1709308246731,-500.0,0.00021917,2]
[315971942,1709308246741,-1243.29,0.00021917,2]
[315971944,1709308246750,-500.0,0.00021917,2]
[315971946,1709308246760,-500.0,0.00021917,2]
[315971948,1709308246769,-674.5,0.00021917,2]
[315971950,1709308246779,-712.72,0.00021917,2]
[315971952,1709308246788,-500.0,0.00021917,2]
[315971954,1709308246797,-503.52,0.00021917,2]
[315971956,1709308246806,-500.0,0.00021917,2]
[315971958,1709308246815,-500.0,0.00021917,2]
[315971960,1709308246824,-500.0,0.00021917,2]
[315971961,1709308246834,-500.0,0.00021917,2]
[315971963,1709308246843,-554.24,0.00021917,2]
[315971966,1709308246853,-859.28,0.00021917,2]
[315971968,1709308246863,-2913.27,0.00021917,2]
[315971969,1709308246873,-500.0,0.00021917,2]
[315971971,1709308246882,-309.99,0.00021917,2]
[315971973,1709308246891,-2019.21,0.00021917,2]
[315971976,1709308246901,-500.0,0.00021917,2]
[315971978,1709308246910,-852.5,0.00021917,2]
[315971980,1709308246919,-500.0,0.00021917,2]
[315971982,1709308246928,-2860.42,0.00021917,2]
[315971984,1709308246938,-725.68,0.00021917,2]
[315971986,1709308246947,-870.95,0.00021917,2]
[315971988,1709308246957,-500.0,0.00021917,2]
[315971990,1709308246966,-500.0,0.00021917,2]
[315971992,1709308246976,-500.0,0.00021917,2]
[315971994,1709308246987,-500.0,0.00021917,2]
[315971996,1709308246997,-680.1,0.00021917,2]
[315971998,1709308247006,-1200.58,0.00021917,2]
[315971999,1709308247016,-500.0,0.00021917,2]
[315972001,1709308247026,-500.0,0.00021917,2]
[315972004,1709308247036,-155.94,0.00021918,2]
[315972006,1709308247049,-151.35,0.00021918,2]
[315972007,1709308247058,-157.2,0.00021918,2]
[315972010,1709308247068,-150.0,0.00021918,2]
[315972012,1709308247078,-2404.34148328,0.00021927,2]
[315972014,1709308247088,-1214.89115201,0.00021945,2]
[315972016,1709308247098,-174.97,0.00021996,2]
[315972017,1709308247107,-138037.01928352,0.00022,4]
[315972020,1709308247118,-245144.57404625,0.00022,4]
[315972029,1709308247194,-455.119992,0.00022,4]
[315972030,1709308247206,-40400.30596075,0.00022,4]
[315972031,1709308247215,-109999.999999,0.00022,2]
[315972032,1709308247224,-200.0,0.00022,2]
[315972033,1709308247235,-151.23066085,0.00022,2]
[315972034,1709308247245,-159.32097843,0.00022,2]
[315972035,1709308247254,-400.0,0.00022,3]
[315972036,1709308247263,-32981.67,0.00022,2]
[315972037,1709308247273,-4302.22,0.00022,2]
[315972039,1709308247283,-63000.0,0.00022,2]
[315972040,1709308247293,-178.0,0.00022013,2]
[315972041,1709308247302,-2404.3414832,0.00022015,2]
[315972042,1709308247311,-1348.24470596,0.00022019,2]
[315972043,1709308247320,-283.0,0.0002202,2]
[315972045,1709308247330,-500.0,0.00022027,2]
[315972047,1709308247339,-500.0,0.00022027,2]
[315972049,1709308247349,-500.0,0.00022027,2]
[315972051,1709308247359,-500.0,0.00022027,2]
[315972053,1709308247368,-500.0,0.00022027,2]
[315972055,1709308247377,-330.63700888,0.00022027,2]
[315972056,1709308247386,-500.0,0.00022027,2]
[315972058,1709308247396,-500.0,0.00022027,2]
[315972060,1709308247405,-500.0,0.00022027,2]
[315972062,1709308247415,-500.0,0.00022027,2]
[315972064,1709308247424,-500.0,0.00022027,2]
[315972066,1709308247433,-500.0,0.00022027,2]
[315972067,1709308247442,-500.0,0.00022027,2]
[315972069,1709308247451,-500.0,0.00022027,2]
[315972071,1709308247460,-500.0,0.00022027,2]
[315972073,1709308247470,-500.0,0.00022027,2]
[315972074,1709308247480,-500.0,0.00022027,2]
[315972075,1709308247492,-500.0,0.00022027,2]
[315972076,1709308247502,-500.0,0.00022027,2]
[315972077,1709308247511,-596.58189339,0.00022027,2]
[315972078,1709308247520,-500.0,0.00022027,2]
[315972079,1709308247530,-500.0,0.00022027,2]
[315972080,1709308247540,-500.0,0.00022027,2]
[315972081,1709308247549,-500.0,0.00022027,2]
[315972082,1709308247559,-500.0,0.00022027,2]
[315972083,1709308247568,-500.0,0.00022027,2]
[315972084,1709308247578,-500.0,0.00022027,2]
[315972085,1709308247588,-1034.17,0.00022027,2]
[315972086,1709308247598,-500.0,0.00022027,2]
[315972087,1709308247607,-500.0,0.00022027,2]
[315972088,1709308247617,-500.0,0.00022027,2]
[315972089,1709308247627,-500.0,0.00022027,2]
[315972090,1709308247636,-500.0,0.00022027,2]
[315972091,1709308247646,-500.0,0.00022027,2]
[315972092,1709308247655,-500.0,0.00022027,2]
[315972093,1709308247665,-500.0,0.00022027,2]
[315972094,1709308247675,-286.59291258,0.00022027,2]
[315972095,1709308247684,-412.71281014,0.00022027,2]
[315972096,1709308247694,-500.0,0.00022027,2]
[315972097,1709308247703,-500.0,0.00022027,2]
[315972098,1709308247713,-500.0,0.00022027,2]
[315972099,1709308247722,-500.0,0.00022027,2]
[315972100,1709308247732,-500.0,0.00022027,2]
[315972101,1709308247743,-500.0,0.00022027,2]
[315972102,1709308247752,-500.0,0.00022027,2]
[315972103,1709308247761,-500.0,0.00022027,2]
[315972104,1709308247770,-500.0,0.00022027,2]
[315972105,1709308247780,-500.0,0.00022027,2]
[315972106,1709308247790,-500.0,0.00022027,2]
[315972107,1709308247799,-500.0,0.00022027,2]
[315972108,1709308247809,-500.0,0.00022027,2]
[315972109,1709308247819,-500.0,0.00022027,2]
[315972110,1709308247828,-500.0,0.00022027,2]
[315972111,1709308247837,-508.86675095,0.00022027,2]
[315972112,1709308247847,-500.0,0.00022027,2]
[315972113,1709308247856,-500.0,0.00022027,2]
[315972114,1709308247866,-639.43226722,0.00022027,2]
[315972115,1709308247875,-500.0,0.00022027,2]
[315972116,1709308247885,-500.0,0.00022027,2]
[315972117,1709308247895,-500.0,0.00022027,2]
[315972118,1709308247905,-500.0,0.00022027,2]
[315972120,1709308247915,-500.0,0.00022027,2]
[315972121,1709308247924,-500.0,0.00022027,2]
[315972123,1709308247934,-500.0,0.00022027,2]
[315972125,1709308247944,-500.0,0.00022027,2]
[315972126,1709308247954,-500.0,0.00022027,2]
[315972127,1709308247964,-500.0,0.00022027,2]
[315972128,1709308247974,-500.0,0.00022027,2]
[315972129,1709308247985,-500.0,0.00022027,2]
[315972130,1709308247997,-500.0,0.00022027,2]
[315972131,1709308248007,-500.0,0.00022027,2]
[315972132,1709308248017,-500.0,0.00022027,2]
[315972133,1709308248028,-500.0,0.00022027,2]
[315972134,1709308248039,-500.0,0.00022027,2]
[315972135,1709308248050,-500.0,0.00022027,2]
[315972136,1709308248059,-500.0,0.00022027,2]
[315972137,1709308248070,-500.0,0.00022027,2]
[315972138,1709308248080,-500.0,0.00022027,2]
[315972139,1709308248089,-150.0,0.00022027,2]
[315972140,1709308248098,-500.0,0.00022027,2]
[315972141,1709308248107,-500.0,0.00022027,2]
[315972142,1709308248116,-500.0,0.00022027,2]
[315972143,1709308248127,-500.0,0.00022027,2]
[315972144,1709308248136,-500.0,0.00022027,2]
[315972145,1709308248146,-534.56,0.00022027,2]
[315972146,1709308248155,-500.0,0.00022027,2]
[315972147,1709308248164,-500.0,0.00022027,2]
[315972148,1709308248174,-500.0,0.00022027,2]
[315972149,1709308248183,-673.98,0.00022027,2]
[315972150,1709308248193,-500.0,0.00022027,2]
[315972151,1709308248202,-500.0,0.00022027,2]
[315972152,1709308248212,-617.96,0.00022027,2]
[315972153,1709308248221,-500.0,0.00022027,2]
[315972154,1709308248231,-651.06,0.00022027,2]
[315972155,1709308248245,-500.0,0.00022027,2]
[315972156,1709308248255,-500.0,0.00022027,2]
[315972157,1709308248265,-500.0,0.00022027,2]
[315972158,1709308248275,-500.0,0.00022027,2]
[315972159,1709308248284,-500.0,0.00022027,2]
[315972160,1709308248294,-500.0,0.00022027,2]
[315972161,1709308248304,-500.0,0.00022027,2]
[315972162,1709308248314,-500.0,0.00022027,2]
[315972163,1709308248324,-500.0,0.00022027,2]
[315972164,1709308248333,-327.82581532,0.00022027,2]
[315972165,1709308249036,-500.0,0.00021917,2]
[315972166,1709308249046,-500.0,0.00021917,2]
[315972167,1709308249057,-224.98418468,0.00022027,2]
[315972168,1709308249066,-544.31,0.00022027,2]
[315972169,1709308249077,-500.0,0.00022027,2]
[315972170,1709308249088,-650.72,0.00022027,2]
[315972171,1709308249098,-500.0,0.00022027,2]
[315972172,1709308249109,-500.0,0.00022027,2]
[315972173,1709308249119,-590.01,0.00022027,2]
[315972174,1709308249130,-500.0,0.00022027,2]
[315972175,1709308249140,-500.0,0.00022027,2]
[315972176,1709308249150,-500.0,0.00022027,2]
[315972177,1709308249160,-500.0,0.00022027,2]
[315972178,1709308249170,-500.0,0.00022027,2]
[315972179,1709308249179,-745.08,0.00022027,2]
[315972180,1709308249189,-834.57,0.00022027,2]
[315972181,1709308249200,-500.0,0.00022027,2]
[315972182,1709308249210,-500.0,0.00022027,2]
[315972183,1709308249220,-500.0,0.00022027,2]
[315972184,1709308249229,-500.0,0.00022027,2]
[315972185,1709308249244,-522.21,0.00022027,2]
[315972186,1709308249253,-500.0,0.00022027,2]
[315972187,1709308249263,-500.0,0.00022027,2]
[315972188,1709308249272,-500.0,0.00022027,2]
[315972189,1709308249282,-524.3,0.00022027,2]
[315972190,1709308249292,-500.0,0.00022027,2]
[315972191,1709308249301,-500.0,0.00022027,2]
[315972192,1709308249311,-500.0,0.00022027,2]
[315972193,1709308249320,-467.29420112,0.00022027,2]
[315972194,1709308249329,-703.46,0.00022027,2]
[315972195,1709308249339,-500.0,0.00022027,2]
[315972196,1709308249348,-500.0,0.00022027,2]
[315972197,1709308249358,-2247.37,0.00022027,2]
[315972198,1709308249367,-500.0,0.00022027,2]
[315972199,1709308249376,-2769.6,0.00022027,2]
[315972200,1709308249386,-500.0,0.00022027,2]
[315972201,1709308249396,-599.08,0.00022027,2]
[315972202,1709308249407,-500.0,0.00022027,2]
[315972203,1709308249417,-500.0,0.00022027,2]
[315972204,1709308249428,-500.0,0.00022027,2]
[315972205,1709308249438,-500.0,0.00022027,2]
[315972206,1709308249447,-2898.64,0.00022027,2]
[315972207,1709308249458,-500.0,0.00022027,2]
[315972208,1709308249468,-713.41,0.00022027,2]
[315972209,1709308249478,-500.0,0.00022027,2]
[315972210,1709308249491,-763.63089667,0.00022027,2]
[315972211,1709308249504,-577.36910333,0.00022027,2]
[315972212,1709308249513,-23.29695032,0.00022027,2]